lending/lending_fUSD_20260124
["ID","MTS","AMOUNT","RATE_DAILY","PERIOD"]
[403162753,1769224245751,-20647.03466448,0.00015536,2]
[403162754,1769224245762,-1901.30753297,0.00015536,2]
[403162755,1769224245773,-2187.70181487,0.00015536,2]
[403162756,1769224245784,-1362.65454814,0.00015536,2]
[403162757,1769224245844,-1110.06940007,0.00015536,2]
[403162762,1769224247645,192.2116211,0.00015437,2]
[403162763,1769224262947,384.84884393,0.00015437,2]
[403162764,1769224292084,602.92620348,0.00015225,2]
[403162769,1769224748357,519.49022058,0.00016,3]
[403162770,1769224863693,5533.0,0.00016,5]
[403162771,1769225055950,-200.0,0.00014521,2]
[403162772,1769225055972,-214.09715114,0.00014605,2]
[403162773,1769225131521,-176.8672326,0.00014504,2]
[403162774,1769225133167,-183.381527,0.00014504,2]
[403162775,1769225135812,-176.31199335,0.00014504,2]
[403162776,1769225138751,-293.9178257,0.00014504,2]
[403162777,1769225140429,-230.0,0.00014504,2]
[403162778,1769225143114,-166.59763096,0.00014504,2]
[403162779,1769225144732,-239.88831574,0.00014504,2]
[403162780,1769225148958,-555.67031196,0.00014504,2]
[403162781,1769225151193,-300.0,0.00014504,2]
[403162782,1769225153425,-427.16872247,0.00014504,2]
[403162783,1769225155035,-105.07644022,0.00014504,2]
[403162784,1769225155064,-97.42024522,0.00014535,2]
[403162785,1769225159089,-300.0,0.00014535,2]
[403162786,1769225162318,-384.8593566,0.00014461,2]
[403162787,1769225165421,-405.0,0.00014461,2]
[403162788,1769225167548,-196.80490656,0.00014461,2]
[403162789,1769225169661,-317.24211769,0.00014461,2]
[403162790,1769225172489,-225.80419846,0.00014461,2]
[403162791,1769225175087,-211.35592782,0.00014461,2]
[403162792,1769225180382,-188.34578917,0.00014461,2]
[403162793,1769225183361,-473.66195779,0.00014461,2]
[403162794,1769225185698,-305.20281656,0.00014461,2]
[403162795,1769225187787,-429.89377745,0.00014461,2]
[403162796,1769225189986,-236.8865675,0.00014461,2]
[403162797,1769225191859,-255.88840929,0.00014461,2]
[403162799,1769225194392,-155.95737811,0.00014461,2]
[403162800,1769225194415,-297.33831714,0.00014535,2]
[403162801,1769225197387,-189.38748428,0.00014535,2]
[403162802,1769225199753,-152.63185,0.00014535,2]
[403162803,1769225201979,-242.95908012,0.00014535,2]
[403162804,1769225203523,-186.5865895,0.00014535,2]
[403162805,1769225205068,-261.53703787,0.00014535,2]
[403162806,1769225207215,-320.1522707,0.00014535,2]
[403162807,1769225208848,-251.01652615,0.00014535,2]
[403162808,1769225212904,-155.82606753,0.00014535,2]
[403162809,1769225215699,-187.64021808,0.00014029,2]
[403162810,1769225217206,-111.04978192,0.00014029,2]
[403162811,1769225217233,-137.55062621,0.00014535,2]
[403162812,1769225250273,2500.0,0.000149,5]
[403162813,1769225250869,-855.70991099,0.00014461,2]
[403162814,1769225252149,5100.0,0.000158,5]
[403162815,1769225253184,-322.2714043,0.00014461,2]
[403162816,1769225254238,7700.0,0.000159,5]
[403162817,1769225255581,-241.89086637,0.00014461,2]
[403162818,1769225257527,-248.356892,0.00014461,2]
[403162819,1769225259628,-1165.64651521,0.00014461,2]
[403162820,1769225261745,-165.64325754,0.00014461,2]
[403162821,1769225263444,-200.15428726,0.00014461,2]
[403162822,1769225266795,-46.41333533,0.00014461,2]
[403162823,1769225266817,-143.94086367,0.00014535,2]
[403162824,1769225268918,-251.54967998,0.00013989,2]
[403162826,1769225271429,-50.52032002,0.00013989,2]
[403162827,1769225271451,-118.53304161,0.00014535,2]
[403162828,1769225271471,-80.02702675,0.00014542,2]
[403162832,1769225314707,2559.20865396,0.00016,4]
[403162833,1769225400902,-409.3041253,0.0001406,2]
[403162834,1769225403551,-410.43469677,0.0001406,2]
[403162835,1769225405052,-250.76580485,0.0001406,2]
[403162836,1769225407102,-202.72394855,0.0001406,2]
[403162837,1769225410171,-169.88456738,0.0001406,2]
[403162838,1769225413000,-222.84735836,0.0001406,2]
[403162839,1769225414519,-177.57814651,0.0001406,2]
[403162840,1769225416608,-191.61455368,0.0001406,2]
[403162841,1769225419001,-280.18204348,0.0001406,2]
[403162844,1769225425757,-58.86475512,0.0001406,2]
[403162845,1769225425778,-121.28184062,0.00014301,2]
[403162846,1769225427994,-267.45029746,0.00014301,2]
[403162847,1769225428020,-54.63855683,0.00014542,2]
[403162848,1769225430775,-60.33441642,0.00014542,2]
[403162849,1769225430797,-96.05234552,0.0001455,2]
[403162855,1769225431570,-63.78155804,0.0001455,2]
[403162857,1769225431580,-469.56484595,0.00014565,2]
[403162860,1769225431592,-2385.31515405,0.00014565,2]
[403162862,1769225431601,-454.5001,0.00014589,2]
[403162863,1769225431611,-1200.0,0.00014595,2]
[403162864,1769225431620,-206.44192485,0.00014596,2]
[403162865,1769225431634,-557.83461946,0.00014596,2]
[403162866,1769225431645,-544.1745364,0.00014596,2]
[403162867,1769225431656,-375.12799992,0.00014596,2]
[403162868,1769225431668,-400.0,0.00014596,2]
[403162869,1769225431684,-771.30091937,0.00014596,2]
[403162870,1769225431693,-300.0,0.00014625,2]
[403162871,1769225431703,-300.0,0.00014625,2]
[403162872,1769225431723,-2301.99614567,0.00014626,2]
[403162873,1769225431739,-552.88385433,0.00014626,2]
[403162874,1769225431749,-100.11614567,0.00014657,2]
[403162875,1769225431793,-1062.57979932,0.00014657,2]
[403162876,1769225431850,-522.90611704,0.00014657,2]
[403162877,1769225431862,-372.51000098,0.00014657,2]
[403162878,1769225431873,-796.76793699,0.00014657,2]
[403162879,1769225431882,-2854.88,0.00014687,2]
[403162880,1769225431892,-1158.71,0.00014689,2]
[403162881,1769225431902,-500.0,0.00014716,2]
[403162882,1769225431911,-500.0,0.00014716,2]
[403162883,1769225431921,-500.0,0.00014716,2]
[403162884,1769225431930,-500.0,0.00014716,2]
[403162885,1769225431940,-500.0,0.00014716,2]
[403162886,1769225431950,-500.0,0.00014716,2]
[403162887,1769225431960,-265.0,0.00014716,2]
[403162888,1769225431970,-500.0,0.00014716,2]
[403162889,1769225431979,-500.0,0.00014716,2]
[403162890,1769225431988,-500.0,0.00014716,2]
[403162891,1769225431997,-500.0,0.00014716,2]
[403162892,1769225432007,-2854.88,0.00014718,2]
[403162893,1769225432016,-1949.16,0.00014742,2]
[403162894,1769225432026,-159.47121487,0.00014744,2]
[403162895,1769225432036,-2854.88,0.00014748,2]
[403162896,1769225432046,-2374.2,0.00014763,2]
[403162897,1769225432055,-2854.88,0.00014779,2]
[403162898,1769225432064,-298.69,0.00014809,2]
[403162899,1769225432078,-2854.88,0.00014809,2]
[403162900,1769225432087,-939.73,0.00014819,2]
[403162901,1769225432096,-2854.88,0.0001484,2]
[403162902,1769225432106,-2854.88,0.00014871,2]
[403162903,1769225432118,-2854.88,0.00014901,2]
[403162904,1769225432127,-2854.88,0.00014932,2]
[403162906,1769225432137,-2854.88,0.00014962,2]
[403162908,1769225432149,-2854.88,0.00014993,2]
[403162910,1769225432158,-2854.88,0.00015023,2]
[403162912,1769225432167,-2854.88,0.00015054,2]
[403162914,1769225432177,-2854.88,0.00015084,2]
[403162916,1769225432187,-154.93135817,0.000153,2]
[403162917,1769225432196,-154.93135817,0.000153,2]
[403162920,1769225432205,-174.75538588,0.00015325,2]
[403162922,1769225432215,-789.46519596,0.00015325,2]
[403162924,1769225432224,-192.2116211,0.00015325,2]
[403162926,1769225432233,-313.17,0.00015363,2]
[403162928,1769225432242,-358.0,0.00015393,2]
[403162930,1769225432252,-151.0,0.00015422,2]
[403162932,1769225432261,-500.0,0.00015424,2]
[403162934,1769225432270,-150.0,0.00015424,2]
[403162936,1769225432279,-153.57259168,0.00015424,2]
[403162938,1769225432289,-500.0,0.00015424,2]
[403162939,1769225432298,-177.49187945,0.00015424,2]
[403162942,1769225432307,-163.67613199,0.00015424,2]
[403162944,1769225432316,-456.28686141,0.00015424,2]
[403162946,1769225432326,-581708.13514717,0.00015425,2]
[403163004,1769225432979,-42571.27547357,0.00015425,2]
[403163005,1769225432992,-1802.01640524,0.00015425,2]
[403163006,1769225433005,-1413.25471627,0.00015425,2]
[403163007,1769225433018,-657.58326595,0.00015425,2]
[403163008,1769225433030,-835.60817854,0.00015425,2]
[403163009,1769225437662,-4202.15230804,0.00015425,2]
[403163010,1769225437819,-4354.28258781,0.00015425,2]
[403163090,1769225439713,-573.72849216,0.00015425,2]
[403163091,1769225439768,-1504.83349926,0.00015425,2]
[403163092,1769225440476,-1.7e-07,0.00015425,2]
[403163115,1769225444213,-120.78709166,0.00015425,2]
[403163124,1769225470706,167.06,0.000226,120]
[403163125,1769225521343,-542.76672643,0.00014554,2]
[403163126,1769225526508,-307.0706343,0.00014554,2]
[403163127,1769225533427,1000.0,0.00014,3]
[403163128,1769225581682,-289.02744856,0.00014546,2]
[403163129,1769225584155,-406.33370507,0.00014546,2]
[403163130,1769225586367,194.28,0.000226,120]
[403163131,1769225588004,-192.72668879,0.00014546,2]
[403163132,1769225590685,-171.94082989,0.00014546,2]
[403163133,1769225593721,-174.29985516,0.00014546,2]
[403163134,1769225597158,-234.8466045,0.00014546,2]
[403163135,1769225598682,-184.18466309,0.00014546,2]
[403163136,1769225783529,-150.0,0.00014494,2]
[403163137,1769225783554,-155.37336821,0.00014546,2]
[403163138,1769225802520,10000.0,0.000136,2]
[403163139,1769225812393,0.01,0.000136,2]
[403163140,1769225812415,305.52,0.000136,2]
[403163142,1769225970702,-160.79240547,0.00014488,2]
[403163143,1769225975273,-181.82031803,0.00014488,2]
[403163144,1769226129759,-157.3872765,0.00014488,2]
[403163145,1769226129779,-43.68683673,0.00014546,2]
[403163146,1769226129800,-150.16263927,0.00014554,2]
[403163147,1769226129823,-284.79725386,0.00014643,2]
[403163148,1769226129843,-177.50059275,0.00014716,2]
[403163149,1769226129864,-46.46540089,0.00014716,2]
[403163154,1769226220445,157.34,0.00011714,2]
[403163164,1769226449924,1800.0,0.000148,5]
[403163165,1769226452017,3600.0,0.000149,5]
[403163166,1769226456033,383.65677568,0.00013655,2]
[403163236,1769226481751,-200.0,0.00014497,2]
[403163237,1769226481772,-70.16082433,0.000145,2]
[403163319,1769226483898,-318.60548503,0.000145,2]
[403163325,1769226488501,-255.39574521,0.000145,2]
[403163327,1769226489883,-408.98703001,0.000145,2]
[403163344,1769226565099,-418.36036733,0.000145,2]
[403163345,1769226565118,-202.87255959,0.00014639,2]
[403163346,1769226565137,-3553.0,0.00015068,2]
[403163347,1769226565156,-1152.54795908,0.00015084,2]
[403163348,1769226568444,3000.0,0.000152,3]
[403163351,1769226631744,-166.66,0.00013715,2]
[403163352,1769226631754,-166.66,0.00014004,2]
[403163353,1769226631764,-166.66,0.00014292,2]
[403163354,1769226631773,-166.66,0.00014581,2]
[403163355,1769226631782,-166.66,0.0001487,2]
[403163356,1769226631792,-1000.0,0.00015054,2]
[403163357,1769226631801,-1000.0,0.00015084,2]
[403163358,1769226631811,-102.56868876,0.00015151,2]
[403163359,1769226631898,-397.43131124,0.00015151,2]
[403163360,1769226631908,-166.66,0.00015159,2]
[403163361,1769226631917,-300.0,0.00015177,2]
[403163362,1769226631927,-300.0,0.00015177,2]
[403163363,1769226631936,-1125.0,0.00015177,2]
[403163364,1769226631945,-73.77259582,0.00015221,2]
[403163365,1769226631967,-226.22740418,0.00015221,2]
[403163366,1769226631976,-1200.0,0.00015221,2]
[403163367,1769226631985,-167.43229461,0.00015221,2]
[403163368,1769226632015,-132.56770539,0.00015221,2]
[403163369,1769226632024,-158.4483516,0.00015223,2]
[403163370,1769226632035,-546.89278113,0.00015223,2]
[403163376,1769226637989,-2500.0,0.000152,2]
[403163377,1769226637999,-496.75641311,0.00015223,2]
[403163378,1769226638008,-500.0,0.00015233,2]
[403163379,1769226638017,-261.71152476,0.0001527,2]
[403163380,1769226638027,-192.2116211,0.0001527,2]
[403163381,1769226638035,-6676.54205292,0.0001528,2]
[403163382,1769226638044,-500.0,0.00015289,2]
[403163383,1769226638053,-500.0,0.00015289,2]
[403163384,1769226638062,-500.0,0.00015289,2]
[403163385,1769226638070,-500.0,0.00015289,2]
[403163386,1769226638079,-500.0,0.00015289,2]
[403163387,1769226638088,-308.70046859,0.00015289,2]
[403163388,1769226638097,-151.0,0.00015297,2]
[403163389,1769226638107,-151.0,0.00015297,2]
[403163390,1769226638115,-500.0,0.00015299,2]
[403163391,1769226638122,-169.40080299,0.00015299,2]
[403163392,1769226638130,-606.56,0.00015299,2]
[403163393,1769226638139,-606.56,0.00015299,2]
[403163394,1769226638147,-606.56,0.00015299,2]
[403163396,1769226638156,-606.56,0.00015299,2]
[403163398,1769226638165,-150.0,0.00015299,2]
[403163400,1769226638174,-72541.40544882,0.000153,2]
[403163402,1769226638185,-328.88666808,0.000153,2]
[403163405,1769226638203,-1667.95075,0.000153,2]
[403163433,1769226639925,-26057.02383779,0.000153,2]
[403163434,1769226639936,-270.00005,0.000153,2]
[403163435,1769226639947,-336.3733244,0.000153,2]
[403163436,1769226639978,-254.35801595,0.000153,2]
[403163437,1769226639988,-8089.55693519,0.000153,2]
[403163438,1769226639999,-287.05300988,0.000153,2]
[403163439,1769226640031,-287.64696131,0.000153,2]
[403163440,1769226640042,-429.22884342,0.000153,2]
[403163441,1769226640190,-267.59660909,0.000153,2]
[403163442,1769226640202,-3864.10583401,0.000153,2]
[403163443,1769226640212,-601.50114901,0.000153,2]
[403163444,1769226640222,-1049.27198944,0.000153,2]
[403163445,1769226640246,-518.41009963,0.000153,2]
[403163446,1769226640350,-582.4354887,0.000153,2]
[403163461,1769226643204,-374.36990935,0.000153,2]
[403163462,1769226643236,-2681.7102304,0.000153,2]
[403163475,1769226645893,-7554.48005327,0.000153,2]
[403163476,1769226646207,-1862.7100469,0.000153,2]
[403163492,1769226709084,500.0,0.000148,5]
[403163493,1769226711177,1000.0,0.000149,5]
[403164529,1769226938110,7697.43,0.0001165,2]
[403164532,1769226995582,2000.0,0.000155,3]
[403164533,1769227080932,-541.62187469,0.00014347,2]
[403164534,1769227083148,-164.47203084,0.00014347,2]
[403164535,1769227084688,-197.90637956,0.00014347,2]
[403164536,1769227087977,-349.2026602,0.00014347,2]
[403164537,1769227089498,-228.99440266,0.00014347,2]
[403164538,1769227091510,-252.25343531,0.00014347,2]
[403164539,1769227094832,-244.68820172,0.00014347,2]
[403164607,1769227104725,-339.25564708,0.00014347,2]
[403164658,1769227106336,-273.04988876,0.00014347,2]
[403164659,1769227109074,-250.0,0.00014347,2]
[403164661,1769227113494,-171.45407407,0.00014347,2]
[403164662,1769227116984,-289.12089765,0.00014347,2]
[403164663,1769227118619,-168.51961922,0.00014347,2]
[403164664,1769227120832,-397.14639032,0.00014347,2]
[403164665,1769227127278,-239.61449792,0.00014347,2]
[403164666,1769227127301,-156.89951446,0.00014354,2]
[403164667,1769227128827,-315.81533691,0.00014354,2]
[403164668,1769227131498,-173.87026014,0.00014354,2]
[403164669,1769227133312,-175.38621614,0.00014354,2]
[403164670,1769227135181,-343.58859151,0.00014354,2]
[403164671,1769227138579,-188.4327386,0.00014354,2]
[403164672,1769227141218,-355.70834291,0.00014354,2]
[403164701,1769227560970,-268.17757971,0.00014282,2]
[403164702,1769227563504,-363.64632452,0.00014282,2]
[403164703,1769227565410,-276.46314596,0.00014282,2]
[403164704,1769227566860,-163.83968361,0.00014282,2]
[403164705,1769227569060,-611.9700595,0.00014282,2]
[403164706,1769227575451,-265.1533955,0.00014282,2]
[403164707,1769227578960,-302.09362044,0.00014282,2]
[403164708,1769227580854,-250.0,0.00014282,2]
[403164709,1769227584214,-289.93340482,0.00014282,2]
[403164710,1769227585745,-188.37172442,0.00014282,2]
[403164711,1769227587296,-253.16067858,0.00014282,2]
[403164712,1769227589059,-162.30962503,0.00014282,2]
[403164713,1769227590756,-445.55790908,0.00014282,2]
[403164714,1769227593965,-209.78581975,0.00014282,2]
[403164715,1769227596088,-183.86301736,0.00014282,2]
[403164716,1769227597649,-181.22122672,0.00014282,2]
[403164717,1769227597670,-131.1385552,0.00014354,2]
[403164784,1769227617129,-28.77044413,0.00014354,2]
[403164785,1769227617157,-148.16059878,0.00014959,2]
[403165472,1769227650998,-222.33233815,0.00014208,2]
[403165473,1769227652380,1900.0,0.000148,5]
[403165474,1769227654480,3900.0,0.000149,5]
[403165475,1769227743229,5413.07,0.000155,10]
[403165476,1769227801096,-386.21087292,0.00014144,2]
[403165477,1769227803337,-291.38098558,0.00014144,2]
[403165478,1769227806069,-74.1881415,0.00014144,2]
[403165479,1769227806092,-163.41347662,0.00014193,2]
[403165486,1769227831979,-36.58652338,0.00014193,2]
[403165487,1769227831992,-24.75766185,0.00014208,2]
[403165488,1769227832002,-166.68,0.0001462,2]
[403165489,1769227832011,-250.0,0.0001471,2]
[403165490,1769227832020,-151.0,0.00014894,2]
[403165491,1769227832030,-100.48864505,0.00014896,2]
[403165492,1769227832041,-199.51135495,0.00014896,2]
[403165493,1769227832052,-295.750874,0.00014896,2]
[403165494,1769227832070,-904.249126,0.00014896,2]
[403165495,1769227832079,-263.93441645,0.00014897,2]
[403165496,1769227832140,-257.87596969,0.00014897,2]
[403165497,1769227832151,-1171.24218737,0.00014897,2]
[403165498,1769227832249,-259.39015822,0.00014897,2]
[403165499,1769227832260,-891.99485236,0.00014897,2]
[403165500,1769227832271,-123550.69667992,0.00014897,2]
[403165501,1769227832308,-1032.80440092,0.00014897,2]
[403165504,1769227832319,-605.71259571,0.00014897,2]
[403165506,1769227832329,-449.66614174,0.00014897,2]
[403165522,1769227838070,-3715.22884414,0.00014897,2]
[403165530,1769227840765,-1.7e-07,0.00014897,2]
[403165531,1769227840776,-897.94,0.00014897,2]
[403165532,1769227840788,-259.62074951,0.00014897,2]
[403165533,1769227840798,-623.63436706,0.00014897,2]
[403165540,1769227844530,-19.65900479,0.00014897,2]
[403165541,1769227844548,-342.95156157,0.00014897,2]
[403165542,1769227844755,-783.94939895,0.00014897,2]
[403165544,1769227846060,-11390.62499368,0.00014897,2]
[403165545,1769227846427,-1251.6492953,0.00014897,2]
[403165551,1769227995996,-530.27041946,0.00014091,2]
[403165552,1769227997506,-247.47774914,0.00014091,2]
[403165553,1769228001120,-297.20141665,0.00014091,2]
[403165554,1769228005266,-275.80053399,0.00014091,2]
[403165555,1769228069364,151.0,0.000226,120]
[403165556,1769228178607,150.0,0.00013655,2]
[403165557,1769228179934,-247.856643,0.00013989,2]
[403165558,1769228182169,-282.94812503,0.00013989,2]
[403165559,1769228183757,-274.61431748,0.00013989,2]
[403165560,1769228185975,-194.58091449,0.00013989,2]
[403165561,1769228185997,-31.05081278,0.00014091,2]
[403165562,1769228195700,150.0,0.00013655,2]
[403165563,1769228220551,150.0,0.00013655,2]
[403165564,1769228236855,-451.07962067,0.00014021,2]
[403165565,1769228238873,-190.65285717,0.00014021,2]
[403165566,1769228242341,-345.94478581,0.00014021,2]
[403165567,1769228245903,-313.32888976,0.00014021,2]
[403165568,1769228248042,-321.70298352,0.00014021,2]
[403165569,1769228251853,-197.09046748,0.00014021,2]
[403165570,1769228281541,-285.51971993,0.00013916,2]
[403165571,1769228283024,-234.26057769,0.00013915,2]
[403165572,1769228285199,-65.73942231,0.00013915,2]
[403165573,1769228285223,-134.18103376,0.00013916,2]
[403165574,1769228287203,-378.00494286,0.00013916,2]
[403165575,1769228293961,-175.19705742,0.00013906,2]
[403165576,1769228298023,-268.1609877,0.00013906,2]
[403165577,1769228300731,-432.12825019,0.00013906,2]
[403165578,1769228302228,-289.0,0.00013906,2]
[403165579,1769228305527,-180.38574137,0.00013906,2]
[403165580,1769228307608,-185.0,0.00013906,2]
[403165581,1769228309806,-418.68736678,0.00013906,2]
[403165582,1769228313806,-189.93713,0.00013836,2]
[403165583,1769228313828,-100.54874819,0.00013906,2]
[403165584,1769228315344,-300.0,0.00013906,2]
[403165585,1769228316894,-237.0033,0.00013906,2]
[403165586,1769228319153,-176.79782439,0.00013906,2]
[403165587,1769228322623,-161.94720577,0.00013906,2]
[403165588,1769228325264,-221.80068755,0.00013906,2]
[403165589,1769228330087,-251.32815818,0.00013906,2]
[403165590,1769228332547,-229.37692669,0.00013906,2]
[403165591,1769228335935,-85.75225658,0.00013906,2]
[403165592,1769228335956,-65.66373205,0.00013915,2]
[403165593,1769228337462,-295.66994095,0.00013915,2]
[403165594,1769228340754,-140.30234476,0.00013915,2]
[403165595,1769228340780,-96.70095524,0.00013915,2]
[403165596,1769228342879,-297.21630414,0.00013915,2]
[403165597,1769228350668,-106.08274062,0.00013915,2]
[403165598,1769228350694,-282.93022308,0.00013915,2]
[403165599,1769228352216,-217.06977692,0.00013915,2]
[403165600,1769228352245,-90.88227392,0.00013915,2]
[403165601,1769228355095,-207.93275091,0.00013915,2]
[403165602,1769228358583,-201.18497517,0.00013915,2]
[403165603,1769228358607,-30.91142809,0.00013915,2]
[403165604,1769228360213,-249.48742691,0.00013915,2]
[403165605,1769228362475,-19.60114501,0.00013915,2]
[403165606,1769228362500,-280.39885499,0.00013915,2]
[403165607,1769228365945,-155.24071074,0.00013915,2]
[403165608,1769228367529,-64.36043427,0.00013915,2]
[403165609,1769228367552,-118.57348085,0.00013915,2]
[403165610,1769228369618,-300.0,0.00013915,2]
[403165611,1769228373236,-81.42651915,0.00013915,2]
[403165612,1769228373268,-75.21924232,0.00013915,2]
[403165613,1769228377844,-386.55543113,0.00013915,2]
[403165614,1769228379472,-38.22532655,0.00013915,2]
[403165615,1769228379497,-133.41019372,0.00013915,2]
[403165616,1769228382486,-297.96694655,0.00013915,2]
[403165617,1769228385884,-68.62285973,0.00013915,2]
[403165618,1769228385909,-211.41277947,0.00013915,2]
[403165619,1769228388479,-168.15643284,0.00013915,2]
[403165620,1769228391739,-120.43078769,0.00013915,2]
[403165621,1769228391763,-117.21155284,0.00013915,2]
[403165622,1769228394000,-346.77395253,0.00013915,2]
[403165623,1769228396945,-53.3948704,0.00013915,2]
[403165624,1769228396972,-146.83012734,0.00013915,2]
[403165625,1769228398574,-168.59545555,0.00013915,2]
[403165626,1769228400651,-184.57441711,0.00013915,2]
[403165627,1769228400677,-10.42558289,0.00013915,2]
[403165628,1769228407498,-300.0,0.00013914,2]
[403165629,1769228407524,-121.05914773,0.00013914,2]
[403165630,1769228409684,-177.41637602,0.00013914,2]
[403165631,1769228413561,-286.74145146,0.00013914,2]
[403165632,1769228415070,-209.51412181,0.00013914,2]
[403165633,1769228417164,-231.39722472,0.00013914,2]
[403165634,1769228418818,-173.87167826,0.00013914,2]
[403165635,1769228418840,-47.21789179,0.00013914,2]
[403165636,1769228421669,-205.78210821,0.00013914,2]
[403165637,1769228421696,-9.44152258,0.00013915,2]
[403165638,1769228425468,-151.0,0.00013913,2]
[403165639,1769228425494,-61.01894134,0.00013915,2]
[403165640,1769228428886,-199.77571834,0.00013915,2]
[403165641,1769228431478,-219.33823485,0.00013915,2]
[403165642,1769228431504,-48.77809603,0.00013915,2]
[403165643,1769228433626,-188.41388948,0.00013915,2]
[403165644,1769228435242,-262.80801449,0.00013915,2]
[403165645,1769228435269,-137.87372854,0.00013915,2]
[403165646,1769228438534,-217.12319244,0.00013915,2]
[403165647,1769228441240,-145.00307902,0.00013915,2]
[403165648,1769228441267,-31.28552714,0.00013915,2]
[403165649,1769228442845,-417.16755992,0.00013915,2]
[403165650,1769228446661,-51.54691294,0.00013915,2]
[403165651,1769228446685,-193.18732749,0.00013915,2]
[403165652,1769228449368,-155.03186656,0.00013815,2]
[403165653,1769228449394,-199.09395867,0.00013915,2]
[403165654,1769228451436,-158.32296483,0.00013911,2]
[403165655,1769228453845,-155.03186656,0.00013904,2]
[403165656,1769228453873,-263.01029106,0.00013911,2]
[403165657,1769228455566,-413.47485461,0.00013911,2]
[403165658,1769228457826,-400.22428166,0.00013911,2]
[403165659,1769228460602,-501.00782437,0.00013911,2]
[403165660,1769228463511,-204.01024947,0.00013911,2]
[403165661,1769228465972,-458.39342186,0.00013911,2]
[403165662,1769228468030,-238.55936507,0.00013911,2]
[403165663,1769228470920,-594.55930104,0.00013911,2]
[403165664,1769228472590,-172.14264503,0.00013911,2]
[403165665,1769228472613,-10.42951164,0.00013915,2]
[403165666,1769228473296,1406.74,0.000226,120]
[403165667,1769228475166,-89.27308893,0.00013915,2]
[403165668,1769228475191,-250.4054372,0.00013915,2]
[403165669,1769228478907,-381.65287247,0.00013915,2]
[403165670,1769228481735,-160.14991565,0.00013915,2]
[403165671,1769228485675,-214.79177468,0.00013915,2]
[403165672,1769228485698,-82.09400346,0.00013915,2]
[403165673,1769228487860,-182.90599654,0.00013915,2]
[403165674,1769228487882,-179.954532,0.00013916,2]
[403165675,1769228490976,-178.70738696,0.00013916,2]
[403165676,1769228494402,-401.16699822,0.00013916,2]
[403165677,1769228496586,-346.98688801,0.00013916,2]
[403165678,1769228497637,-209.21893678,0.00013916,2]
[403165679,1769228499779,-313.91034674,0.00013916,2]
[403165680,1769228501407,-183.85483595,0.00013916,2]
[403165681,1769228503551,-330.14659575,0.00013916,2]
[403165682,1769228505078,-280.40948795,0.00013916,2]
[403165683,1769228507786,-208.58830649,0.00013916,2]
[403165684,1769228510742,-350.63134384,0.00013916,2]
[403165685,1769228513901,-390.66590947,0.00013916,2]
[403165686,1769228514265,1000.0,0.00013655,2]
[403165687,1769228515153,-308.68261763,0.00013916,2]
[403165688,1769228517952,-288.3268377,0.00013916,2]
[403165689,1769228519034,-202.2191889,0.00013916,2]
[403165690,1769228520552,-192.88371431,0.00013916,2]
[403165691,1769228522088,-159.99371674,0.00013916,2]
[403165692,1769228524267,-255.69688058,0.00013916,2]
[403165693,1769228525935,-236.90060527,0.00013916,2]
[403165694,1769228528743,-392.40814424,0.00013916,2]
[403165695,1769228530306,-256.54516795,0.00013916,2]
[403165696,1769228532422,-151.63403555,0.00013916,2]
[403165697,1769228536392,-170.11123983,0.00013916,2]
[403165698,1769228537846,-154.97974583,0.00013916,2]
[403165699,1769228540017,-292.27244388,0.00013916,2]
[403165700,1769228541566,-203.14186998,0.00013916,2]
[403165701,1769228545452,-249.73100501,0.00013916,2]
[403165702,1769228547015,-315.73649027,0.00013916,2]
[403165703,1769228550464,-175.31436043,0.00013916,2]
[403165704,1769228552636,-310.65375151,0.00013916,2]
[403165705,1769228554107,-211.16229621,0.00013916,2]
[403165706,1769228556322,-436.35896096,0.00013916,2]
[403165707,1769228558568,-373.67418504,0.00013916,2]
[403165708,1769228561404,-175.39869777,0.00013916,2]